Workbook

Sheet Capa

Sheet Simular IRS
B6: Passo 1 | D6: Informação pessoal
D8: Estado civil
D10: Tributação Separada / Tributação Conjunta
D12: N.º de Dependentes com 3 anos ou menos
D14: N.º de Dependentes entre 4 e 6 anos
D16: N.º de Dependentes com mais de 6 anos
D18: N.º de Ascendentes
D20: Idade Sujeito Passivo A
D22: Idade Sujeito Passivo B
B25: Passo 2 | D25: Rendimentos
G26: Sujeito Passivo A | L26: Sujeito Passivo B
B27: Categoria A | D27: Rendimentos do trabalho dependente
B30: Categoria H | D30: Pensões de velhice
B33: Passo 3 | D33: Deduções à coleta do IRS, incluindo benefícios fiscais
D35: Despesas de saúde e prémios de seguros de saúde
D37: Despesas de educação do agregado familiar
D39: Despesas com aquisição de imóvel para habitação própria permanente
D40: Ano do contrato (preenchimento obrigatório)
D42: Juros
D44: Despesas com rendas para habitação própria permanente
D46: Despesas gerais (outras não referidas acima)
D48: Encargos com pensões de alimentos
D50: Contribuições para Planos Poupança Reforma
D52: Sujeito Passivo A
D54: Sujeito Passivo B
D56: Encargos com donativos
D60: =IF('BIG SIMULATOR'!C88="","Falta preencher dados",""&'BIG SIMULATOR'!C88&""&IF('BIG SIMULATOR'!C89=1,"",", "&'BIG SIMULATOR'!C100)&""&", "&IF('BIG SIMULATOR'!C93>1,""&'BIG SIMULATOR'!C93&" filhos",IF('BIG SIMULATOR'!C93=1,""&'BIG SIMULATOR'!C93&" filho","sem filhos")))&", "&IF('BIG SIMULATOR'!C94=0," sem ascendentes",IF('BIG SIMULATOR'!C94=1,""&'BIG SIMULATOR'!C94&" ascendente",""&'BIG SIMULATOR'!C94&" ascendentes")) -> 0, sem filhos, sem ascendentes
D63: Ano | E63: 2024 | G63: 2025
D64: Rendimento bruto | E64: =IFERROR(+'BIG SIMULATOR'!$N$88,0) -> 0 | G64: =IFERROR(+'BIG SIMULATOR'!$N$88,0) -> 0
D65: IRS antes de deduções (1) | E65: ='BIG SIMULATOR'!F46 -> 0 | G65: ='BIG SIMULATOR'!G46 -> 0
D66: Deduções à coleta:
D67: Deduções por dependente / ascendente | E67: =IF('BIG SIMULATOR'!H7=TRUE,'BIG SIMULATOR'!H49,'BIG SIMULATOR'!F49) -> 0 | G67: ='BIG SIMULATOR'!G49 -> 0
D68: Despesas gerais familiares | E68: =IF('BIG SIMULATOR'!H7=TRUE,'BIG SIMULATOR'!H50,'BIG SIMULATOR'!F50) -> 0 | G68: =+'BIG SIMULATOR'!G50 -> 0
D69: Saúde / educação / imóveis / pensão de alimentos | E69: =IF('BIG SIMULATOR'!H7=TRUE,'BIG SIMULATOR'!H57,'BIG SIMULATOR'!F57) -> 0 | G69: ='BIG SIMULATOR'!G57 -> 0
D70: Benefícios fiscais | E70: =IF('BIG SIMULATOR'!H7=TRUE,'BIG SIMULATOR'!H60,'BIG SIMULATOR'!F60) -> 0 | G70: ='BIG SIMULATOR'!G60 -> 0
D71: Total de deduções à coleta ou limite (2) | E71: =IF('BIG SIMULATOR'!H7=TRUE,'BIG SIMULATOR'!H65,'BIG SIMULATOR'!F65) -> 0 | G71: ='BIG SIMULATOR'!G65 -> 0
D72: Imposto final (1) - (2) | E72: =IF('BIG SIMULATOR'!H7=TRUE,'BIG SIMULATOR'!H46-'BIG SIMULATOR'!H65-'BIG SIMULATOR'!H77,'BIG SIMULATOR'!F46-'BIG SIMULATOR'!F65) -> 0 | G72: ='BIG SIMULATOR'!G46-'BIG SIMULATOR'!G65 -> 0
D73: Rendimento líquido de IRS | E73: =IF('BIG SIMULATOR'!H7=TRUE,'BIG SIMULATOR'!H82,'BIG SIMULATOR'!F74) -> 0 | G73: ='BIG SIMULATOR'!G74 -> 0
D74: Diferença de rendimento líquido face a 2024 | G74: ='BIG SIMULATOR'!G83 -> 0
D75: Taxa efetiva | E75: =IF('BIG SIMULATOR'!H7=TRUE,'BIG SIMULATOR'!H80,'BIG SIMULATOR'!F80) -> 0 | G75: ='BIG SIMULATOR'!G80 -> 0
D77: Caso o imposto final seja inferior a € 25, não haverá lugar ao pagamento de qualquer imposto.

Sheet Informação Genérica
C6: Taxas gerais de IRS - 2025
C8: Rendimento Coletável (€) | F8: Taxa (%) | G8: Parcela a abater (€)
C9: Até 8.059 | F9: 0.13 | G9: 0
C10: De mais de 8.059 até 12.160 | F10: 0.165 | G10: 282.07
C11: De mais de 12.160 até 17.233 | F11: 0.22 | G11: 950.91
C12: De mais de 17.233 até 22.306 | F12: 0.25 | G12: 1467.91
C13: De mais de 22.306 até 28.400 | F13: 0.32 | G13: 3029.38
C14: De mais de 28.400 até 41.629 | F14: 0.355 | G14: 4023.14
C15: De mais de 41.629 até 44.987 | F15: 0.435 | G15: 7353.76
C16: De mais de 44.987 até 83.696 | F16: 0.45 | G16: 8028.38
C17: Superior a 83.696 | F17: 0.48 | G17: 10539
C19: Deduções por dependente e ascendente
C21: À coleta do IRS devida pelos sujeitos passivos, é dedutível:
C22: a) € 600 por cada dependente, acrescendo:
C23: - 126 €, para o primeiro dependente com idade igual ou inferior a 3 anos;
C24: - 300 €, para o segundo dependente e seguintes que não ultrapassem 6 anos de idade.
C25: b) € 525 por cada ascendente (acresce € 110 se existir apenas um ascendente no agregado familiar).
C26: O ascendente terá que viver em comunhão de habitação com o sujeito passivo e não poderá auferir rendimento superior à pensão mínima do regime geral
C28: Deduções por despesas gerais
C30: 35% do valor suportado por qualquer membro do agregado familiar:
C31: - limite global de € 250 para cada sujeito passivo;
C32: - a dedução opera no ano em que as faturas foram emitidas;
C33: - para beneficiar da dedução os sujeitos passivos devem pedir ao emitente a inclusão do seu número de identificação fiscal nas faturas;
C34: - o valor da dedução é apurado com base nas faturas comunicadas à Autoridade Tributária (AT) pelos emitentes até 25 de fevereiro do ano seguinte ao da sua emissão.
C35: 45% do valor suportado por qualquer membro do agregado familiar com o limite global de € 335, nas famílias monoparentais.
C37: Dedução por despesas de saúde
C39: 15% do valor suportado por qualquer membro do agregado familiar com o limite global de € 1.000.
C40: São elegíveis para dedução as faturas que titulem prestações de serviços e aquisições de bens, isentos de IVA ou tributados à taxa reduzida, nas seguintes atividades:
C41: - atividade de saúde humana;
C42: - comércio a retalho de produtos farmacêuticos, em estabelecimentos especializados;
C43: - comércio a retalho de produtos médicos e ortopédicos, em estabelecimentos especializados;
C44: - comércio a retalho de material ótico, em estabelecimentos especializados
C45: - prémios de seguros de saúde.
C46: São elegíveis para dedução as faturas que titulem prestações de serviços e aquisições de bens, tributados à taxa normal de IVA, desde que devidamente justificados através de receita médica.
C48: Dedução por despesas com educação
C50: 30% do valor suportado por qualquer membro do agregado familiar com o limite global de € 800. Este limite pode ser aumentado em € 200, quando a diferença seja relativa a arrendamento de imóvel ou de parte de imóvel, a membros do agregado familiar que não tenham mais de 25 anos (cuja localização se situe a uma distância superior a 50 quilómetros da residência permanente).
C52: Majoração de 10% do valor de despesas suportadas por estudantes que frequentem estabelecimentos de ensino situados em território do interior e regiões autónomas, caso em que o limite global acima referido é elevado para € 1.000, se derivado deste tipo de despesas.
C54: Dedução por encargos com imóveis
C56: 15% do valor suportado por qualquer membro do agregado familiar, relativamente a rendas para fins de habitação permanente, com o limite de € 600 para 2024 e € 700 para 2025.
C58: 15% do valor suportado por qualquer membro do agregado familiar, relativamente a juros de dívidas, por contratos celebrados até 31 de dezembro de 2011, contraídas para aquisição, construção ou beneficiação de imóveis para fins de habitação permanente ou arrendamento, com o limite de € 296. Este limite poderá ser superior, consoante o rendimento coletável do agregado familiar.
C60: Dedução por exigência de fatura
C62: 15% do IVA suportado, por qualquer membro do agregado familiar que conste de faturas que titulem determinadas prestações de serviço (manutenção e reparação de veículos automóveis e motociclos, alojamento, restauração e similares, atividades de salões de cabeleireiro e institutos de beleza, atividades veterinárias e atividades de clubes desportivos e ginásios).
C63: 35% do IVA suportado, por qualquer membro do agregado familiar com aquisição de medicamentos de uso veterinário.
C64: 100% do IVA suportado, por qualquer membro do agregado familiar com aquisição de passes mensais para utilização de transportes públicos e assinaturas de publicações periódicas. (jornais e revistas, incluindo digitais).
C65: Limite global de € 250 por agregado familiar.
C67: Despesas com pensões de alimentos
C69: 20% dos encargos com pensões de alimentos, desde que resultantes de sentença judicial ou acordo judicialmente homologado.
C71: Encargos com donativos
C73: 25% dos donativos destinados a igrejas, instituições religiosas, instituições de caridade, museus, escolas, bibliotecas e outras entidades de cariz social, cultural ou científico reconhecidas pelo Estado, até ao limite de 15% da coleta.
C75: Contribuições para Planos Poupança Reforma (PPR)
C77: 20% do valor aplicado com o limite de € 300, € 350 ou € 400 consoante a idade do sujeito passivo.

Sheet Disclaimer
C10: Simulador não prevê as seguintes situações
C12: - Residentes fiscais nos Açores e na Madeira;
C13: - Sujeitos passivos e dependentes com grau de incapacidade;
C14: - Agregados familiares em que os dependentes ou os ascendentes aufiram rendimentos;
C15: - Situações de guarda conjunta de dependentes;
C16: - IRS Jovem.
C18: Pressupostos da estimativa de imposto
C20: - As estimativas disponibilizadas são meramente ilustrativas e baseadas na interpretação da PwC da Proposta de Lei n.º 26/XVI/1.ª, relativa ao Orçamento do Estado para 2025.
C21: - No apuramento do abatimento por minímo de existência, não estão contempladas situações em que os sujeitos passivos obtenham rendimentos sujeitos a taxas especiais de IRS.
C22: - Está a ser considerada a Remuneração Mínima Mensal Garantida de € 870 para 2025, conforme prevista no Acordo Tripartido sobre Valorização Salarial e Crescimento Económico 2025-2028.
C24: Rendimentos do trabalho dependente - apuramento da dedução específica
C26: - Está a considerar-se que a totalidade do rendimento bruto constitui base de incidência contributiva de Segurança Social e que a taxa aplicável é de 11%;
C27: - Está a ser considerado o Indexante dos Apoios Sociais em vigor no ano de 2024 (509,26 €).
C29: Pensões - apuramento da dedução específica
C31: - Está a considerar-se que o valor de contribuições obrigatórias para regimes de proteção social e/ou para subsistemas legais de saúde é inferior ao valor mínimo previsto para a dedução específica.
C32: - Está a ser considerado o Indexante dos Apoios Sociais em vigor no ano de 2024 (509,26 €).
C34: Deduções à coleta
C36: Despesas de educação
C37: - O simulador não contempla as situações de despesas relativas a arrendamento de imóvel de estudantes que frequentem um estabelecimento de ensino a uma distância superior a 50 quilómetros da sua residência permanente, nem a majoração dos encargos incorridos por estudantes que frequentem estabelecimentos de ensino situados no interior e nas regiões autónomas.
C39: Encargos com imóveis
C40: - O simulador não contempla a majoração do limite de dedução por encargos com imóveis, referente à transferência de residência permanente para um território do interior.
C42: Encargos com donativos
C43: - Assume-se por defeito uma majoração de 130%, sem qualquer limitação. No entanto, esta majoração dependerá da natureza da entidade beneficiária do mesmo.
C45: Exigência de fatura
C46: - O simulador não contempla a dedução referente à exigência de fatura.
C48: Tributação separada
C49: - No valor das despesas referentes a educação, saúde e encargos com imóveis, deverá colocar a totalidade das despesas incorridas pelo seu agregado familiar;
C50: - No valor das despesas gerais e familiares, deverá colocar a totalidade das despesas incorridas por si e 50% das despesas incorridas pelos seus dependentes;
C51: - No valor dos donativos, deverá colocar a totalidade dos donativos efetuados por si e 50% do valor dos donativos efetuados pelos seus dependentes;
C52: - No valor das pensões de alimentos, deverá colocar unicamente o valor de pensões de alimentos pagas por si.

Sheet Ajuda

Sheet BIG SIMULATOR (hidden)
O2: Estado Civil
O3: Solteiro / Viúvo / Divorciado | P3: 0
O4: Casado / Unido de facto | P4: 1
O7: Número de Filhos
O8: 0
O9: 1
O10: 2
O11: 3
O12: 4
B13: DESCRIÇÃO | F13: 2024 | G13: 2025 | O13: 5
O15: Número de Ascendentes
B16: RENDIMENTO BRUTO | O16: 0
B17: TRABALHO DEPENDENTE | F17: =G17 -> 0 | G17: =H120 -> 0 | O17: 1
B18: PENSÕES DE VELHICE | F18: =G18 -> 0 | G18: =H138 -> 0 | O18: 2
O19: 3
B20: TOTAL | F20: 0 | G20: =G17+G18 -> 0 | O20: 4
F21: 0
B22: DEDUÇÕES ESPECÍFICAS | F22: 0
B23: TRABALHO DEPENDENTE | F23: =G122 -> 0 | G23: =H122 -> 0 | O23: Tributação conjunta
F24: 0 | O24: Tributação separada
F25: 0
B26: PENSÕES | F26: 0 | G26: =H140 -> 0
B27: TOTAL | F27: =G122 -> 0 | G27: =G23+G26 -> 0
B29: ABATIMENTO MÍNIMO DE EXISTÊNCIA | F29: =T66 -> 0 | G29: =M66 -> 0
B31: RENDIMENTO COLETÁVEL | F31: =F20-F27-F29 -> 0 | G31: =G20-G27-G29 -> 0
B37: CÁLCULO DO IMPOSTO:
B38: COEFICIENTE CONJUGAL | F38: =IF((IF($C$89=1,F31,IF(AND($C$99=2,$C$89=2),F31,F31/2)))<0,0,(IF($C$89=1,F31,IF(AND($C$99=2,$C$89=2),F31,F31/2)))) -> 0 | G38: =IF((IF($C$89=1,G31,IF(AND($C$99=2,$C$89=2),G31,G31/2)))<0,0,(IF($C$89=1,G31,IF(AND($C$99=2,$C$89=2),G31,G31/2)))) -> 0
B39: TAXA A APLICAR | F39: =VLOOKUP($F$38,$L$104:$O$112,3,TRUE) -> 0.13 | G39: =VLOOKUP($G$38,$L$127:$O$135,3,TRUE) -> 0.13
B40: APLICAÇÃO DE TAXA PROGRESSIVA | F40: =IFERROR(ROUND(F39*F38,2),"") -> 0 | G40: =IFERROR(ROUND(G39*G38,2),"") -> 0
B41: PARCELA A ABATER | F41: =VLOOKUP($F$38,$L$104:$O$112,4,TRUE) -> 0 | G41: =VLOOKUP($G$38,$L$127:$O$135,4,TRUE) -> 0
B42: TAXA DE SOLIDARIEDADE | F42: =IF($C$89=1,((VLOOKUP(F38,$Q$106:$T$108,3,TRUE)*F38)-VLOOKUP(F38,$Q$106:$T$108,4,TRUE)),IF(AND($C$89=2,$C$99=1),((VLOOKUP(F38,$Q$106:$T$108,3,TRUE)*F38)-VLOOKUP(F38,$Q$106:$T$108,4,TRUE))*2,((VLOOKUP(F38,$Q$106:$T$108,3,TRUE)*F38)-VLOOKUP(F38,$Q$106:$T$108,4,TRUE)))) -> 0 | G42: =IF($C$89=1,((VLOOKUP(G38,$Q$128:$T$130,3,TRUE)*G38)-VLOOKUP(G38,$Q$128:$T$130,4,TRUE)),IF(AND($C$89=2,$C$99=1),((VLOOKUP(G38,$Q$128:$T$130,3,TRUE)*G38)-VLOOKUP(G38,$Q$128:$T$130,4,TRUE))*2,((VLOOKUP(G38,$Q$128:$T$130,3,TRUE)*G38)-VLOOKUP(G38,$Q$128:$T$130,4,TRUE)))) -> 0
L43: Minímo de Existência de 2025 - Abatimento | S43: Minímo de Existência de 2024 - Abatimento
B44: SUB-TOTAL | F44: =IFERROR(ROUND((F40-F41+F42),2),"") -> 0 | G44: =IFERROR(ROUND((G40-G41+G42),2),"") -> 0 | N44: IAS*1,5*14 | U44: IAS*1,5*14
L45: IAS 2024 | M45: =M76 -> 509.26 | N45: =M45*1.5*14 -> 10694.46
B46: COLETA | F46: =IF($C$89=1,F44,IF(AND($C$89=2,$C$99=1),(F40-F41)*2+F42,F40-F41+F42)) -> 0 | G46: =IF($C$89=1,G44,IF(AND($C$89=2,$C$99=1),(G40-G41)*2+G42,G40-G41+G42)) -> 0
L47: IAS 2025 | M47: =N76 -> 509.26 | N47: =M47*1.5*14 -> 10694.46 | S47: IAS 2024 | T47: =M76 -> 509.26 | U47: =T47*1.5*14 -> 10694.46
B48: DEDUÇÕES À COLECTA
B49: DEDUÇÕES DEPENDENTES E ASCENDENTES | F49: =G164+G165 -> 0 | G49: =H164+H165 -> 0 | L49: Valor de Referência | M49: =N73 -> 12180 | S49: Valor de Referência | T49: =M73 -> 11480
B50: DESPESAS GERAIS | F50: =IF(C89=1,IF(C93<>0,IF(0.45*G93>335,335,0.45*G93),IF(0.35*G93>250,250,0.35*G93)),IF(C99=1,IF(0.35*G93>500,500,0.35*G93),IF(0.35*G93>250,250,0.35*G93))) -> 0 | G50: =IF(C89=1,IF(C93<>0,IF(0.45*G93>335,335,0.45*G93),IF(0.35*G93>250,250,0.35*G93)),IF(C99=1,IF(0.35*G93>500,500,0.35*G93),IF(0.35*G93>250,250,0.35*G93))) -> 0 | L50: Maior entre | M50: =MAX(N47,M49) -> 12180 | S50: Maior entre | T50: =MAX(U47,T49) -> 11480
L51: Limite despesas gerais | M51: 250 | S51: Limite despesas gerais | T51: 250
B52: DESPESAS DE SAÚDE | F52: =IF(C89=1,IF(G88*0.15>1000,1000,0.15*G88),IF(C99=2,IF(G88*0.075>500,500,0.075*G88),IF(G88*0.15>1000,1000,0.15*G88))) -> 0 | G52: =IF(C89=1,IF(G88*0.15>1000,1000,0.15*G88),IF(C99=2,IF(G88*0.075>500,500,0.075*G88),IF(G88*0.15>1000,1000,0.15*G88))) -> 0 | L52: Taxa 1º escalão | M52: =N127 -> 0.13 | S52: Taxa 1º escalão | T52: =N104 -> 0.13
B53: DESPESAS DE EDUCAÇÃO | F53: =IF($C$89=1,IF($G$89*0.3>800,800,0.3*$G$89),IF($C$99=2,IF($G$89*0.15>400,400,0.15*$G$89),IF($G$89*0.3>800,800,0.3*$G$89))) -> 0 | G53: =IF($C$89=1,IF($G$89*0.3>800,800,0.3*$G$89),IF($C$99=2,IF($G$89*0.15>400,400,0.15*$G$89),IF($G$89*0.3>800,800,0.3*$G$89))) -> 0 | L53: L | M53: =M50-M51/(M52*3.6)+M127/3.6 -> 13884.42308 | S53: L | T53: =T50-T51/(T52*3.6)+M104/3.6 -> 13085.53419
B54: ENCARGOS COM IMÓVEIS - JUROS | F54: =IF($C$98<=2011,IF($C$89=1,IF(F38>30000,IF($G$90*0.15>296,296,$G$90*0.15),IF(0.15*$G$90>VLOOKUP(F38,$F$178:$I$179,3,TRUE),VLOOKUP(F38,$F$178:$I$179,3,TRUE),0.15*$G$90)),IF($C$99=2,IF(F38>30000,IF($G$90*0.075>148,148,$G$90*0.075),IF(0.075*$G$90>0.5*VLOOKUP(F38,$F$178:$I$179,3,TRUE),0.5*VLOOKUP(F38,$F$178:$I$179,3,TRUE),0.075*$G$90)),IF($C$99=1,IF(F38>30000,IF($G$90*0.15>296,296,$G$90*0.15),IF(0.15*$G$90>VLOOKUP(F38,$F$178:$I$179,3,TRUE),VLOOKUP(F38,$F$178:$I$179,3,TRUE),0.15*$G$90)),0)))) -> 0 | G54: =IF($C$98<=2011,IF($C$89=1,IF(G38>30000,IF($G$90*0.15>296,296,$G$90*0.15),IF(0.15*$G$90>VLOOKUP(G38,$F$178:$I$179,3,TRUE),VLOOKUP(G38,$F$178:$I$179,3,TRUE),0.15*$G$90)),IF($C$99=2,IF(G38>30000,IF($G$90*0.075>148,148,$G$90*0.075),IF(0.075*$G$90>0.5*VLOOKUP(G38,$F$178:$I$179,3,TRUE),0.5*VLOOKUP(G38,$F$178:$I$179,3,TRUE),0.075*$G$90)),IF($C$99=1,IF(G38>30000,IF($G$90*0.15>296,296,$G$90*0.15),IF(0.15*$G$90>VLOOKUP(G38,$F$178:$I$179,3,TRUE),VLOOKUP(G38,$F$178:$I$179,3,TRUE),0.15*$G$90)),0)))) -> 0
B55: RENDAS | F55: =IF($C$89=1,IF(F38>30000,IF($G$91*0.15>600,600,$G$91*0.15),IF(0.15*$G$91>VLOOKUP(F38,$F$171:$I$172,3,TRUE),VLOOKUP(F38,$F$171:$I$172,3,TRUE),0.15*$G$91)),IF($C$99=2,IF(F38>30000,IF($G$91*0.075>300,300,$G$91*0.075),IF(0.075*$G$91>0.5*VLOOKUP(F38,$F$171:$I$172,3,TRUE),0.5*VLOOKUP(F38,$F$171:$I$172,3,TRUE),0.075*$G$91)),IF(F38>30000,IF($G$91*0.15>600,600,$G$91*0.15),IF(0.15*$G$91>VLOOKUP(F38,$F$171:$I$172,3,TRUE),VLOOKUP(F38,$F$171:$I$172,3,TRUE),0.15*$G$91)))) -> 0 | G55: =IF($C$89=1,IF(G38>30000,IF($G$91*0.15>700,700,$G$91*0.15),IF(0.15*$G$91>VLOOKUP(G38,$F$171:$I$172,3,TRUE),VLOOKUP(G38,$F$171:$I$172,3,TRUE),0.15*$G$91)),IF($C$99=2,IF(G38>30000,IF($G$91*0.075>350,350,$G$91*0.075),IF(0.075*$G$91>0.5*VLOOKUP(G38,$F$171:$I$172,3,TRUE),0.5*VLOOKUP(G38,$F$171:$I$172,3,TRUE),0.075*$G$91)),IF(G38>30000,IF($G$91*0.15>700,700,$G$91*0.15),IF(0.15*$G$91>VLOOKUP(G38,$F$171:$I$172,3,TRUE),VLOOKUP(G38,$F$171:$I$172,3,TRUE),0.15*$G$91)))) -> 0 | L55: Art. 70.º, n.º 4 | N55: 2,2*IAS*14 | O55: Casados? | P55: ='Simular IRS'!$F$8="Casado / Unido de facto" -> FALSE | Q55: casado=2, solteiro=1 | S55: Art. 70.º, n.º 4 | U55: 2,2*IAS*14 | V55: Casados? | W55: ='Simular IRS'!$F$8="Casado / Unido de facto" -> FALSE | X55: casado=2, solteiro=1
B56: PENSÃO DE ALIMENTOS | F56: =0.2*G92 -> 0 | G56: =0.2*G92 -> 0 | L56: Condição fatal | M56: =G20>N56 -> FALSE | N56: =2.2*14*M47*Q56 -> 15685.208 | O56: Tribut conjunta? | P56: =IF(AND($P$55=TRUE,Tipo_Tributacao="Tributação conjunta"),TRUE,FALSE) -> FALSE | Q56: =IF(P56=TRUE,2,1) -> 1 | S56: Condição fatal | T56: =F20>U56 -> FALSE | U56: =2.2*14*T47*X56 -> 15685.208 | V56: Tribut conjunta? | W56: =IF(AND($P$55=TRUE,Tipo_Tributacao="Tributação conjunta"),TRUE,FALSE) -> FALSE | X56: =IF(W56=TRUE,2,1) -> 1
B57: TOTAL (SAUDE; EDUCAÇÃO; IMOVEIS; RENDAS; PENSÕES DE ALIMENTOS) | F57: =SUM(F52:F56) -> 0 | G57: =SUM(G52:G56) -> 0 | U57: =U56/14 -> 1120.372
B58: CONTRIBUIÇÕES PARA PPR | F58: =IF(F18=0,IF('Simular IRS'!G20<35,IF(0.2*'BIG SIMULATOR'!G94>400,400,0.2*'BIG SIMULATOR'!G94),IF(AND('Simular IRS'!G20>=35,'Simular IRS'!G20<=50),IF(0.2*'BIG SIMULATOR'!G94>350,350,0.2*'BIG SIMULATOR'!G94),IF(0.2*'BIG SIMULATOR'!G94>300,300,0.2*'BIG SIMULATOR'!G94)))+IF('Simular IRS'!G22<35,IF(0.2*'BIG SIMULATOR'!G95>400,400,0.2*'BIG SIMULATOR'!G95),IF(AND('Simular IRS'!G22>=35,'Simular IRS'!G22<=50),IF(0.2*'BIG SIMULATOR'!G95>350,350,0.2*'BIG SIMULATOR'!G95),IF(0.2*'BIG SIMULATOR'!G95>300,300,0.2*'BIG SIMULATOR'!G95))),0) -> 0 | G58: =IF(G18=0,IF('Simular IRS'!G20<35,IF(0.2*'BIG SIMULATOR'!G94>400,400,0.2*'BIG SIMULATOR'!G94),IF(AND('Simular IRS'!G20>=35,'Simular IRS'!G20<=50),IF(0.2*'BIG SIMULATOR'!G94>350,350,0.2*'BIG SIMULATOR'!G94),IF(0.2*'BIG SIMULATOR'!G94>300,300,0.2*'BIG SIMULATOR'!G94)))+IF('Simular IRS'!G22<35,IF(0.2*'BIG SIMULATOR'!G95>400,400,0.2*'BIG SIMULATOR'!G95),IF(AND('Simular IRS'!G22>=35,'Simular IRS'!G22<=50),IF(0.2*'BIG SIMULATOR'!G95>350,350,0.2*'BIG SIMULATOR'!G95),IF(0.2*'BIG SIMULATOR'!G95>300,300,0.2*'BIG SIMULATOR'!G95))),0) -> 0
B59: ENCARGOS COM DONATIVOS | F59: =IF(0.25*G96*1.3>0.15*F46,0.15*F46,0.25*G96*1.3) -> 0 | G59: =IF(0.25*G96*1.3>0.15*G46,0.15*G46,0.25*G96*1.3) -> 0 | L59: Limite máx Abatimento | M59: =G20-G27 -> 0 | N59: -> via Art. 70, n.º 2, d) CIRS | S59: Limite máx Abatimento | T59: =F20-F27 -> 0 | U59: -> via Art. 70, n.º 2, d) CIRS
B60: TOTAL (EBF) | F60: =SUM(F58:F59) -> 0 | G60: =SUM(G58:G59) -> 0
L61: Condições abatimento | M61: Valor | N61: Aplicável? | O61: Valor abatimento | S61: Condições abatimento | T61: Valor | U61: Aplicável? | V61: Valor abatimento
B62: LIMITE OU SOMA | F62: =IF($C$89=1,MIN(F57+F60,VLOOKUP(F38,$L$117:$N$119,3,TRUE)),IF($C$99=2,MIN(F57+F60,0.5*VLOOKUP(F38,$L$117:$N$119,3,TRUE)),MIN(F57+F60,VLOOKUP(F38,$L$117:$N$119,3,TRUE)))) -> 0 | G62: =IF($C$89=1,MIN(G57+G60,VLOOKUP(G38,$L$117:$N$119,3,TRUE)),IF($C$99=2,MIN(G57+G60,0.5*VLOOKUP(G38,$L$117:$N$119,3,TRUE)),MIN(G57+G60,VLOOKUP(G38,$L$117:$N$119,3,TRUE)))) -> 0 | L62: RB <= VF | M62: =M49-(G23/Q56+M51/M52) -> 10256.92308 | N62: =$G$20<=$M$49*Q56 -> TRUE | O62: =IF(N62=TRUE,M62,0)*Q56 -> 10256.92308 | P62: =IF(O62<0,"'-> Valor negativo, logo abatimento N/A","") ->  | S62: RB <= VF | T62: =T49-(F23/X56+T51/T52) -> 9556.923077 | U62: =$F$20<=$T$49*X56 -> TRUE | V62: =IF(U62=TRUE,T62,0)*X56 -> 9556.923077 | W62: =IF(V62<0,"'-> Valor negativo, logo abatimento N/A","") -> 
L63: RB > VF & RB < L | M63: =(M49-2.6*(G20/Q56-M49))-(G27/Q56+M51/M52) -> 41924.92308 | N63: =AND($G$20>$M$49*Q56,$G$20<M53*Q56) -> FALSE | O63: =IF(N63=TRUE,M63,0)*Q56 -> 0 | S63: RB > VF & RB < L | T63: =(T49-2.6*(F20/X56-T49))-(F27/X56+T51/T52) -> 39404.92308 | U63: =AND($F$20>$T$49*X56,$F$20<T53*X56) -> FALSE | V63: =IF(U63=TRUE,T63,0)*X56 -> 0
L64: RB > L | M64: =(M53-M127-1.35*(G20/Q56-M53))-(G27/Q56) -> 24569.39423 | N64: =$G$20>$M$53*Q56 -> FALSE | O64: =IF(N64=TRUE,M64,0)*Q56 -> 0 | S64: RB > L | T64: =(T53-M127-1.35*(F20/X56-T53))-(F27/X56) -> 22692.00534 | U64: =$F$20>$T$53*X56 -> FALSE | V64: =IF(U64=TRUE,T64,0)*X56 -> 0
B65: TOTAL DAS DEDUÇÕES | F65: =MIN(F49+F62+F50,F46) -> 0 | G65: =MIN(G49+G62+G50,G46) -> 0 | O65: =IF(M56=TRUE,0,MAX(0,SUM(O62:O64))) -> 10256.92308 | P65: -> Abatimento a considerar | V65: =IF(T56=TRUE,0,SUM(V62:V64)) -> 9556.923077 | W65: -> Abatimento a considerar
L66: Abatimento final | M66: =IF(MIN(O65,M59)>0,MIN(O65,M59),0) -> 0 | N66: =IF(M56=TRUE,"Abatimento não é aplicável porque se verifica a condição fatal","") ->  | S66: Abatimento final | T66: =IF(MIN(V65,T59)>0,MIN(V65,T59),0) -> 0 | U66: =IF(T56=TRUE,"Abatimento não é aplicável porque se verifica a condição fatal","") -> 
B67: IMPOSTO APURADO | F67: =IF(F46-F65<0,0,F46-F65) -> 0 | G67: =IF(G46-G65<0,0,G46-G65) -> 0
L72: SMN 2023 | M72: SMN 2024 | N72: SMN 2025
L73: =760*14 -> 10640 | M73: =820*14 -> 11480 | N73: =870*14 -> 12180
B74: RENDIMENTO LÍQUIDO | F74: =F20-F67 -> 0 | G74: =G20-G67 -> 0
L75: IAS 2023 | M75: IAS 2024 | N75: IAS 2025
L76: 480.43 | M76: 509.26 | N76: 509.26
B80: TAXA EFETIVA | F80: =IFERROR(F67/F20,0) -> 0 | G80: =IFERROR(G67/G20,0) -> 0
L82: RENDIMENTO | N82: Sujeito Passivo A | O82: Sujeito Passivo B
B83: DIFERENÇA RENDIMENTO LÍQUIDO | G83: =G74-F74 -> 0
L84: RENDIMENTO DO TRABALHO | N84: ='Simular IRS'!G27 -> 0 | O84: ='Simular IRS'!L27 -> 0
F86: DEDUÇÕES À COLETA | L86: PENSÕES VELHICE | N86: ='Simular IRS'!G30 -> 0 | O86: ='Simular IRS'!L30 -> 0
C88: ='Simular IRS'!F8 -> 0 | F88: Despesas de saúde | G88: ='Simular IRS'!G35 -> 0 | M88: TOTAL | N88: =SUM(N84,O84,N86,O86) -> 0
B89: Estado Civil: Solteiro (1), Casado (2) | C89: =IF(C88="Casado / Unido de facto",2,1) -> 1 | F89: Despesas de educação | G89: ='Simular IRS'!G37 -> 0
B90: ≤3 | C90: ='Simular IRS'!F12 -> 0 | F90: Encargos com imóveis - juros | G90: ='Simular IRS'!G42 -> 0
B91: >3e ≤6 | C91: ='Simular IRS'!F14 -> 0 | F91: Rendas | G91: ='Simular IRS'!G44 -> 0
B92: >6 | C92: ='Simular IRS'!F16 -> 0 | F92: Pensão de alimentos | G92: ='Simular IRS'!G48 -> 0
B93: Nº de dependentes*: | C93: =C90+C91+C92 -> 0 | F93: Despesas Gerais | G93: ='Simular IRS'!G46 -> 0
B94: Nº de ascendentes | C94: ='Simular IRS'!F18 -> 0 | F94: PPR A | G94: ='Simular IRS'!G52 -> 0
F95: PPR B | G95: ='Simular IRS'!G54 -> 0
F96: Donativos | G96: ='Simular IRS'!G56 -> 0 | L96: Taxas IRS e limites dedução à coleta
B98: Ano de contrato | C98: ='Simular IRS'!G40 -> 0
B99: Tipo de tributação | C99: =IF(C100="Tributação separada",2,1) -> 1 | L99: 2024 | N99: Continente
C100: ='Simular IRS'!F10 -> 0
L101: Rendimento colectável | N101: Taxa | O101: Parcela
L102: (Euros) | N102: (%) | O102: Abater
L103: De | M103: Até | O103: (Euros) | Q103: TAXA ADICIONAL DE SOLIDARIEDADE
L104: 0 | M104: 7703 | N104: 0.13 | O104: 0
C105: RENDIMENTO | G105: dedução específica 2023 | H105: 4104 | L105: 7703 | M105: 11623 | N105: 0.165 | O105: 269.61 | Q105: Escalões | S105: Taxa | T105: Parcela
L106: 11623 | M106: 16472 | N106: 0.22 | O106: 908.92 | Q106: 0 | R106: 80000 | S106: 0 | T106: 0
C107: Trabalho Dependente - Dedução específica | L107: 16472 | M107: 21321 | N107: 0.25 | O107: 1403.08 | Q107: 80000 | R107: 250000 | S107: 0.025 | T107: 2000
G108: 2024 | H108: 2025 | L108: 21321 | M108: 27146 | N108: 0.32 | O108: 2895.61 | Q108: 250000 | R108: 1e+17 | S108: 0.05 | T108: 8250
L109: 27146 | M109: 39791 | N109: 0.355 | O109: 3845.5
C110: Sujeito Passivo A | D110: Rendimento do trabalho dependente do sujeito passivo A | G110: =N84 -> 0 | H110: =N84 -> 0 | L110: 39791 | M110: 43000 | N110: 0.435 | O110: 7029.08
D111: Contribuições obrigatórias para a SS | G111: =0.11*G110 -> 0 | H111: =0.11*H110 -> 0 | L111: 43000 | M111: 80000 | N111: 0.45 | O111: 7673.78
D112: Dedução mínima prevista para rendimentos da categoria | G112: =$H$105*(1+($M$76-$L$76)/$L$76) -> 4350.275878 | H112: =8.54*N76 -> 4349.0804 | L112: 80000 | M112: 999999999 | N112: 0.48 | O112: 10073.6
D113: Dedução aplicável | G113: =IF(G110>=G112,IF(G111=0,G112,IF(G111>G112,G111,G112)),G110) -> 0 | H113: =IF(H110>=H112,IF(H111=0,H112,IF(H111>H112,H111,H112)),H110) -> 0
N114: Limite das deduções à colecta
C115: Sujeito Passivo B | D115: Rendimento do trabalho dependente do sujeito passivo B | G115: =O84 -> 0 | H115: =O84 -> 0
D116: Contribuições obrigatórias para a SS | G116: =G115*0.11 -> 0 | H116: =H115*0.11 -> 0
D117: Dedução mínima prevista para rendimentos da categoria | G117: =$H$105*(1+($M$76-$L$76)/$L$76) -> 4350.275878 | H117: =8.54*N76 -> 4349.0804 | L117: 0 | M117: =M104 -> 7703 | N117: 9999999
D118: Dedução aplicável | G118: =IF(G115>=G117,IF(G116=0,G117,IF(G116>G117,G116,G117)),G115) -> 0 | H118: =IF(H115>=H117,IF(H116=0,H117,IF(H116>H117,H116,H117)),H115) -> 0 | L118: =M117 -> 7703 | M118: 80000 | N118: =IF(C93>2,(1+(0.05*C93))*(1000+(1500*((80000-H38)/(80000-7116)))),1000+(1500*((80000-H38)/(80000-7116)))) -> 2646.451896
L119: 80000 | M119: 99999999999 | N119: =IF(C93>2,(1+(0.05*C93))*1000,1000) -> 1000
C120: TOTAL SP A+B | D120: RENDIMENTO BRUTO DA CATEGORIA | G120: =G110+G115 -> 0 | H120: =H110+H115 -> 0
C122: TOTAL SP A+B | D122: DEDUÇÃO ESPECÍFICA AOS REND. CATEGORIA | G122: =G113+G118 -> 0 | H122: =H113+H118 -> 0 | L122: 2025 | N122: Continente
L124: Rendimento colectável | N124: Taxa | O124: Parcela
C125: Pensões - Dedução específica | L125: (Euros) | N125: (%) | O125: Abater | Q125: TAXA ADICIONAL DE SOLIDARIEDADE
L126: De | M126: Até | O126: (Euros)
C127: Sujeito Passivo A | D127: Pensões de velhice | G127: =N86 -> 0 | H127: =N86 -> 0 | L127: 0 | M127: 8059 | N127: 0.13 | O127: 0 | Q127: Escalões | S127: Taxa | T127: Parcela
D128: Total de Pensões | G128: =G127 -> 0 | H128: =G127 -> 0 | L128: 8059 | M128: 12160 | N128: 0.165 | O128: 282.07 | Q128: 0 | R128: 80000 | S128: 0 | T128: 0
D129: Dedução mínima prevista para rendimentos da categoria | G129: =$H$105*(1+($M$76-$L$76)/$L$76) -> 4350.275878 | H129: =8.54*N76 -> 4349.0804 | L129: 12160 | M129: 17233 | N129: 0.22 | O129: 950.91 | Q129: 80000 | R129: 250000 | S129: 0.025 | T129: 2000
D130: Dedução aplicável | G130: =IF(G128<G129,G128,G129) -> 0 | H130: =IF(H128<H129,H128,H129) -> 0 | L130: 17233 | M130: 22306 | N130: 0.25 | O130: 1467.91 | Q130: 250000 | R130: 1e+17 | S130: 0.05 | T130: 8250
L131: 22306 | M131: 28400 | N131: 0.32 | O131: 3029.38
L132: 28400 | M132: 41629 | N132: 0.355 | O132: 4023.14
C133: Sujeito Passivo B | D133: Pensões de velhice | G133: =O86 -> 0 | H133: =O86 -> 0 | L133: 41629 | M133: 44987 | N133: 0.435 | O133: 7353.76
D134: Total de Pensões | G134: =G133 -> 0 | H134: =H133 -> 0 | L134: 44987 | M134: 83696 | N134: 0.45 | O134: 8028.38
D135: Dedução mínima prevista para rendimentos da categoria | G135: =$H$105*(1+($M$76-$L$76)/$L$76) -> 4350.275878 | H135: =8.54*N76 -> 4349.0804 | L135: 83696 | M135: 999999999 | N135: 0.48 | O135: 10539
D136: Dedução aplicável | G136: =IF(G134<4104,G134,4104) -> 0 | H136: =IF(H134<4104,H134,4104) -> 0
N137: Limite das deduções à colecta
C138: TOTAL SP A+B | D138: RENDIMENTO BRUTO DA CATEGORIA | G138: =G133+G127 -> 0 | H138: =H133+H127 -> 0
C140: TOTAL SP A+B | D140: DEDUÇÃO ESPECÍFICA AOS REND. CATEGORIA | G140: =G130+G136 -> 0 | H140: =H130+H136 -> 0 | L140: 0 | M140: =M127 -> 8059 | N140: 9999999
L141: =M140 -> 8059 | M141: 80000 | N141: =IF(C116>2,(1+(0.05*C116))*(1000+(1500*((80000-H61)/(80000-7116)))),1000+(1500*((80000-H61)/(80000-7116)))) -> 2646.451896
L142: 80000 | M142: 99999999999 | N142: =IF(C116>2,(1+(0.05*C116))*1000,1000) -> 1000
F144: Número de Dependentes
F145: Idade ≤ 3 anos a 31/12 | H145: =C90 -> 0
F146: Idade >3 anos e ≤ 6 anos a 31/12 | H146: =C91 -> 0
F147: Idade > 6 anos a 31/12 | H147: =C92 -> 0
F148: Total | H148: =H145+H146+H147 -> 0 | M148: 2025
F149: Número de Ascendentes | M149: 0.044
F150: Ascendentes | H150: =+C94 -> 0 | L150: t.v. PIB/t | M150: 0.003
L151: Taxa de atualização art.º68-B nº3 | M151: =(1+M149)*(1+M150) -> 1.047132
G154: 2024 | H154: 2025
F156: Dependentes com 3 anos ou menos (sem maj) | G156: 726 | H156: 726
F157: Dependentes com 3 anos ou menos (com maj) | G157: 900 | H157: 900
F158: Dependentes entre 4 e 6 anos (com maj) | G158: 900 | H158: 900
F159: Dependentes com mais de 6 anos | G159: 600 | H159: 600
F160: Ascendentes (mais do que 1) | G160: 525 | H160: 525
F161: Ascendentes (apenas 1) | G161: 635 | H161: 635
G163: 2024 | H163: 2025
F164: Dedução dependentes | G164: =IF(AND(C89=2,C99=2,H148<2),(G156/2)*H145+(G159/2)*(H146+H147),IF(AND(C89=2,C99=2,H147>0),G159/2*H147+G158/2*H146+G157/2*H145,IF(AND(C89=2,C99=2,H146>1,H145=0),G159/2+G158/2*(H146-1),IF(AND(C89=2,C99=2,H145>1,H146=0),G156/2+G157/2*(H145-1),IF(AND(C89=2,C99=2,H145>0,H146>0),G159/2+G158/2*(H146-1)+G157/2*H145,IF(AND(C89=2,C99=1,H148<2),G156*H145+G159*(H146+H147),IF(AND(C89=2,C99=1,H147>0),G159*H147+G158*H146+G157*H145,IF(AND(C89=2,C99=1,H146>1,H145=0),G159+G158*(H146-1),IF(AND(C89=2,C99=1,H145>1,H146=0),G156+G157*(H145-1),IF(AND(C89=2,C99=1,H145>0,H146>0),G159+G158*(H146-1)+G157*H145,IF(AND(C89=1,H148<2),G156*H145+G159*(H146+H147),IF(AND(C89=1,H147>0),G159*H147+G158*H146+G157*H145,IF(AND(C89=1,H146>1,H145=0),G159+G158*(H146-1),IF(AND(C89=1,H145>1,H146=0),G156+G157*(H145-1),IF(AND(C89=1,H145>0,H146>0),G159+G158*(H146-1)+G157*H145))))))))))))))) -> 0 | H164: =IF(AND(C89=2,C99=2,H148<2),(H156/2)*H145+(H159/2)*(H146+H147),IF(AND(C89=2,C99=2,H147>0),H159/2*H147+H158/2*H146+H157/2*H145,IF(AND(C89=2,C99=2,H146>1,H145=0),H159/2+H158/2*(H146-1),IF(AND(C89=2,C99=2,H145>1,H146=0),H156/2+H157/2*(H145-1),IF(AND(C89=2,C99=2,H145>0,H146>0),H159/2+H158/2*(H146-1)+H157/2*H145,IF(AND(C89=2,C99=1,H148<2),H156*H145+H159*(H146+H147),IF(AND(C89=2,C99=1,H147>0),H159*H147+H158*H146+H157*H145,IF(AND(C89=2,C99=1,H146>1,H145=0),H159+H158*(H146-1),IF(AND(C89=2,C99=1,H145>1,H146=0),H156+H157*(H145-1),IF(AND(C89=2,C99=1,H145>0,H146>0),H159+H158*(H146-1)+H157*H145,IF(AND(C89=1,H148<2),H156*H145+H159*(H146+H147),IF(AND(C89=1,H147>0),H159*H147+H158*H146+H157*H145,IF(AND(C89=1,H146>1,H145=0),H159+H158*(H146-1),IF(AND(C89=1,H145>1,H146=0),H156+H157*(H145-1),IF(AND(C89=1,H145>0,H146>0),H159+H158*(H146-1)+H157*H145))))))))))))))) -> 0
F165: Dedução ascendentes | G165: =IF(C99=2,IF(C94=0,0,IF(C94=1,G161/2,(G160*C94)/2)),IF(C94=0,0,IF(C94=1,G161,(G160*C94)))) -> 0 | H165: =IF(C99=2,IF(C94=0,0,IF(C94=1,H161/2,(H160*C94)/2)),IF(C94=0,0,IF(C94=1,H161,(H160*C94)))) -> 0
F168: Rendimento colectável | H168: Limite Dedução Rendas 2024
F169: (Euros)
F170: De | G170: Até
F171: 0 | G171: 7479 | H171: 800
F172: =G171 -> 7479 | G172: 30000 | H172: =502+((800-502)*((30000-G24)/(30000-F172))) -> 898.9628347
F175: Rendimento colectável | H175: Limite Dedução Juros 2024
F176: (Euros)
F177: De | G177: Até
F178: 0 | G178: 7479 | H178: 450
F179: =G178 -> 7479 | G179: 30000 | H179: =296+((450-296)*((30000-G24)/(30000-F179))) -> 501.1418676
F182: Rendimento colectável | H182: Limite Dedução Rendas 2025
F183: (Euros)
F184: De | G184: Até
F185: 0 | G185: 7479 | H185: 800
F186: =G185 -> 7479 | G186: 30000 | H186: =502+((800-502)*((30000-G38)/(30000-F186))) -> 898.9628347
F189: Rendimento colectável | H189: Limite Dedução Juros 2025
F190: (Euros)
F191: De | G191: Até
F192: 0 | G192: 7479 | H192: 450
F193: =G192 -> 7479 | G193: 30000 | H193: =296+((450-296)*((30000-G38)/(30000-F193))) -> 501.1418676
